[Event "*** Titled Tuesday 3|2 Blitz"]
[Site "Chess.com"]
[Date "2017.06.06"]
[Round "1"]
[White "Gordima"]
[Black "LonesomeGeorge1"]
[Result "1-0"]
[WhiteElo "2536"]
[BlackElo "2258"]
[TimeControl "180+2"]
[EndTime "13:58:47 PDT"]
[Termination "Gordima won by resignation"]

1. Nf3 {[%clk 0:03:02]} 1... e6 {[%clk 0:02:58.1]} 2. c4 {[%clk 0:03:01.4]} 2...
f5 {[%clk 0:02:59]} 3. g3 {[%clk 0:03:01.6]} 3... Nf6 {[%clk 0:03:00.3]} 4. Bg2
{[%clk 0:03:03.1]} 4... Be7 {[%clk 0:03:00.8]} 5. O-O {[%clk 0:03:04.1]} 5...
O-O {[%clk 0:03:02.4]} 6. b3 {[%clk 0:03:02]} 6... d6 {[%clk 0:03:03.1]} 7. d4
{[%clk 0:03:01.5]} 7... a5 {[%clk 0:03:01.8]} 8. Nc3 {[%clk 0:03:01]} 8... Ne4
{[%clk 0:02:56.2]} 9. Bb2 {[%clk 0:02:54.1]} 9... Nxc3 {[%clk 0:02:55.2]} 10.
Bxc3 {[%clk 0:02:56]} 10... Bf6 {[%clk 0:02:56.8]} 11. Qc2 {[%clk 0:02:47.7]}
11... Nc6 {[%clk 0:02:54]} 12. e4 {[%clk 0:02:39.1]} 12... e5 {[%clk 0:02:17.8]}
13. dxe5 {[%clk 0:02:26.6]} 13... Nxe5 {[%clk 0:02:09.1]} 14. Nd4 {[%clk
0:02:12.4]} 14... fxe4 {[%clk 0:02:02]} 15. Bxe4 {[%clk 0:02:14.3]} 15... g6
{[%clk 0:01:37.1]} 16. f4 {[%clk 0:02:14.6]} 16... Ng4 {[%clk 0:01:33.8]} 17.
Rae1 {[%clk 0:02:15]} 17... Kh8 {[%clk 0:01:28.6]} 18. h3 {[%clk 0:02:06.3]}
18... Nh6 {[%clk 0:01:29.6]} 19. g4 {[%clk 0:02:07.6]} 19... Bg7 {[%clk
0:01:30.6]} 20. Bg2 {[%clk 0:01:47.8]} 20... Bd7 {[%clk 0:01:23.1]} 21. Ne6
{[%clk 0:01:46.9]} 21... Bxe6 {[%clk 0:01:24.3]} 22. Rxe6 {[%clk 0:01:48.7]}
22... Qd7 {[%clk 0:01:25.3]} 23. Bxg7+ {[%clk 0:01:46]} 23... Kxg7 {[%clk
0:01:26]} 24. Qc3+ {[%clk 0:01:44.4]} 24... Kg8 {[%clk 0:01:24.7]} 25. Bd5
{[%clk 0:01:41.1]} 25... Nf7 {[%clk 0:01:24]} 26. Rfe1 {[%clk 0:01:30.8]} 26...
Rae8 {[%clk 0:01:19.7]} 27. Qf6 {[%clk 0:01:21]} 27... Rxe6 {[%clk 0:00:41.4]}
28. Rxe6 {[%clk 0:01:18]} 28... Re8 {[%clk 0:00:37.9]} 29. f5 {[%clk 0:01:02.7]}
29... gxf5 {[%clk 0:00:33.8]} 30. gxf5 {[%clk 0:01:00]} 30... c6 {[%clk
0:00:31.6]} 31. Rxd6 {[%clk 0:00:35.2]} 31... Qe7 {[%clk 0:00:23.3]} 32. Bxf7+
{[%clk 0:00:19.4]} 32... Qxf7 {[%clk 0:00:23.4]} 33. Qxf7+ {[%clk 0:00:20.7]}
33... Kxf7 {[%clk 0:00:24.6]} 34. Kf2 {[%clk 0:00:18.2]} 34... Re5 {[%clk
0:00:09.9]} 35. Rd7+ {[%clk 0:00:18]} 35... Kf6 {[%clk 0:00:11.4]} 36. Rxb7
{[%clk 0:00:17.1]} 36... h5 {[%clk 0:00:12.7]} 37. Rc7 {[%clk 0:00:12.3]} 37...
Rc5 {[%clk 0:00:10.1]} 38. Ke3 {[%clk 0:00:12.3]} 38... Kxf5 {[%clk 0:00:11.4]}
39. Kd4 {[%clk 0:00:12.8]} 39... Re5 {[%clk 0:00:10.6]} 40. Rf7+ {[%clk
0:00:13.5]} 40... Ke6 {[%clk 0:00:11.5]} 41. Re7+ {[%clk 0:00:14.8]} 1-0

[Event "*** Titled Tuesday 3|2 Blitz"]
[Site "Chess.com"]
[Date "2017.06.06"]
[Round "1"]
[White "MyleneFarmer"]
[Black "AkshatChandra"]
[Result "0-1"]
[WhiteElo "2373"]
[BlackElo "2737"]
[TimeControl "180+2"]
[EndTime "13:58:50 PDT"]
[Termination "AkshatChandra won by checkmate"]

1. e4 {[%clk 0:03:01.4]} 1... c5 {[%clk 0:02:58.7]} 2. Nf3 {[%clk 0:03:02.8]}
2... e6 {[%clk 0:02:59.9]} 3. d4 {[%clk 0:03:03.5]} 3... cxd4 {[%clk 0:03:01.8]}
4. Nxd4 {[%clk 0:03:05.3]} 4... Nc6 {[%clk 0:03:02.6]} 5. Nc3 {[%clk 0:03:06.3]}
5... Qc7 {[%clk 0:03:03.2]} 6. Be3 {[%clk 0:03:06.5]} 6... a6 {[%clk 0:03:03.7]}
7. Qd2 {[%clk 0:03:03.9]} 7... Nf6 {[%clk 0:03:04.1]} 8. f3 {[%clk 0:03:04.4]}
8... Ne5 {[%clk 0:03:00.1]} 9. O-O-O {[%clk 0:03:01.8]} 9... Bb4 {[%clk
0:02:57.6]} 10. a3 {[%clk 0:03:00.9]} 10... Bxc3 {[%clk 0:02:54.2]} 11. Qxc3
{[%clk 0:03:00.1]} 11... Qxc3 {[%clk 0:02:54.2]} 12. bxc3 {[%clk 0:03:02]} 12...
d5 {[%clk 0:02:55.7]} 13. Bf4 {[%clk 0:02:42.2]} 13... Ng6 {[%clk 0:02:46.3]}
14. Bd6 {[%clk 0:02:42.2]} 14... dxe4 {[%clk 0:02:29.7]} 15. c4 {[%clk
0:02:41.8]} 15... Bd7 {[%clk 0:02:09.9]} 16. c5 {[%clk 0:02:36.8]} 16... exf3
{[%clk 0:02:08.3]} 17. gxf3 {[%clk 0:02:36.2]} 17... e5 {[%clk 0:01:55.8]} 18.
Re1 {[%clk 0:02:34.3]} 18... O-O-O {[%clk 0:01:56]} 19. Nb3 {[%clk 0:02:31.1]}
19... Rhe8 {[%clk 0:01:43.2]} 20. Bc4 {[%clk 0:02:28.2]} 20... Be6 {[%clk
0:01:42.2]} 21. Bd3 {[%clk 0:02:19.7]} 21... Nf4 {[%clk 0:01:36.7]} 22. Bf1
{[%clk 0:02:14.3]} 22... Bd5 {[%clk 0:01:18.3]} 23. Rg1 {[%clk 0:02:11.7]} 23...
N6h5 {[%clk 0:01:16.2]} 24. Rxe5 {[%clk 0:02:08.7]} 24... Rxe5 {[%clk 0:01:11]}
25. Bxe5 {[%clk 0:02:10.6]} 25... Ng6 {[%clk 0:01:09.8]} 26. f4 {[%clk
0:02:03.7]} 26... Nxe5 {[%clk 0:01:07.8]} 27. fxe5 {[%clk 0:02:04.2]} 27... Re8
{[%clk 0:01:07.3]} 28. Bh3+ {[%clk 0:01:57.9]} 28... Kc7 {[%clk 0:01:06]} 29.
Bg4 {[%clk 0:01:58.3]} 29... Nf4 {[%clk 0:01:05.7]} 30. Bd1 {[%clk 0:01:46.1]}
30... Ng6 {[%clk 0:00:58.7]} 31. h4 {[%clk 0:01:45.3]} 31... Rxe5 {[%clk
0:00:53.4]} 32. h5 {[%clk 0:01:46.1]} 32... Nf4 {[%clk 0:00:54.2]} 33. Rxg7
{[%clk 0:01:46.7]} 33... Nxh5 {[%clk 0:00:55.4]} 34. Rxh7 {[%clk 0:01:47.3]}
34... Nf6 {[%clk 0:00:53.8]} 35. Rh6 {[%clk 0:01:43.4]} 35... Nd7 {[%clk
0:00:54]} 36. Rh7 {[%clk 0:01:35.7]} 36... Be6 {[%clk 0:00:53.7]} 37. Bh5 {[%clk
0:01:09]} 37... Nf6 {[%clk 0:00:46.6]} 38. Rxf7+ {[%clk 0:00:57.7]} 38... Bxf7
{[%clk 0:00:44.4]} 39. Bxf7 {[%clk 0:00:59.6]} 39... Nd7 {[%clk 0:00:43.4]} 40.
Kb2 {[%clk 0:00:55]} 40... Nxc5 {[%clk 0:00:43.9]} 41. Nxc5 {[%clk 0:00:56.2]}
41... Rxc5 {[%clk 0:00:45.8]} 42. a4 {[%clk 0:00:53.1]} 42... Kb6 {[%clk
0:00:45]} 43. Bb3 {[%clk 0:00:49.1]} 43... Rg5 {[%clk 0:00:45.4]} 44. Ka3 {[%clk
0:00:49.1]} 44... Kc5 {[%clk 0:00:46.5]} 45. Kb2 {[%clk 0:00:49.5]} 45... Kb4
{[%clk 0:00:47.1]} 46. Ka2 {[%clk 0:00:47]} 46... Kc3 {[%clk 0:00:46.8]} 47. Ka3
{[%clk 0:00:45]} 47... Rg2 {[%clk 0:00:47.4]} 48. a5 {[%clk 0:00:44.5]} 48...
Rg5 {[%clk 0:00:44.8]} 49. Ka4 {[%clk 0:00:45.4]} 49... Rg4+ {[%clk 0:00:46.1]}
50. Ka3 {[%clk 0:00:46.2]} 50... Rb4 {[%clk 0:00:47.3]} 51. Ba4 {[%clk
0:00:44.1]} 51... Rb1 {[%clk 0:00:42.4]} 52. Bb3 {[%clk 0:00:44.7]} 52... Ra1+
{[%clk 0:00:40.6]} 53. Ba2 {[%clk 0:00:45.5]} 53... Kxc2 {[%clk 0:00:41.2]} 54.
Kb4 {[%clk 0:00:43]} 54... Rxa2 {[%clk 0:00:41.3]} 55. Kc4 {[%clk 0:00:44.9]}
55... Rxa5 {[%clk 0:00:42]} 56. Kb4 {[%clk 0:00:46.2]} 56... Rb5+ {[%clk
0:00:43.5]} 57. Ka4 {[%clk 0:00:47.6]} 57... Kc3 {[%clk 0:00:43.7]} 58. Ka3
{[%clk 0:00:49.5]} 58... Ra5# {[%clk 0:00:45.1]} 0-1

[Event "*** Titled Tuesday 3|2 Blitz"]
[Site "Chess.com"]
[Date "2017.06.06"]
[Round "1"]
[White "danyuffa"]
[Black "Caminator2000"]
[Result "0-1"]
[WhiteElo "2505"]
[BlackElo "2239"]
[TimeControl "180+2"]
[EndTime "13:59:08 PDT"]
[Termination "Caminator2000 won by resignation"]

1. d4 {[%clk 0:03:00.8]} 1... Nf6 {[%clk 0:02:58.6]} 2. c4 {[%clk 0:03:02.3]}
2... e6 {[%clk 0:02:58.6]} 3. g3 {[%clk 0:03:03.4]} 3... c5 {[%clk 0:02:53.2]}
4. d5 {[%clk 0:03:04.2]} 4... exd5 {[%clk 0:02:28.7]} 5. cxd5 {[%clk 0:03:06.1]}
5... d6 {[%clk 0:02:30.2]} 6. Nc3 {[%clk 0:03:05.5]} 6... g6 {[%clk 0:02:30.7]}
7. Bg2 {[%clk 0:03:07.4]} 7... Bg7 {[%clk 0:02:29.2]} 8. Nf3 {[%clk 0:03:08.8]}
8... O-O {[%clk 0:02:26]} 9. O-O {[%clk 0:03:10.2]} 9... Re8 {[%clk 0:02:23.8]}
10. Bf4 {[%clk 0:03:11.6]} 10... a6 {[%clk 0:02:21.8]} 11. a4 {[%clk 0:03:11.5]}
11... Ne4 {[%clk 0:02:06]} 12. Nxe4 {[%clk 0:03:08.3]} 12... Rxe4 {[%clk
0:02:07.9]} 13. Nd2 {[%clk 0:03:03.7]} 13... Rb4 {[%clk 0:02:02.2]} 14. b3
{[%clk 0:03:04.5]} 14... g5 {[%clk 0:01:53.8]} 15. Be3 {[%clk 0:03:03.4]} 15...
Bxa1 {[%clk 0:01:54.7]} 16. Qxa1 {[%clk 0:03:03.1]} 16... Qe7 {[%clk 0:01:52.9]}
17. h4 {[%clk 0:02:33.6]} 17... gxh4 {[%clk 0:01:48.8]} 18. Bh6 {[%clk
0:02:18.7]} 18... f6 {[%clk 0:01:42.4]} 19. e4 {[%clk 0:01:30.5]} 19... h3
{[%clk 0:01:31.2]} 20. Bh1 {[%clk 0:01:26.4]} 20... Nd7 {[%clk 0:01:27.9]} 21.
Qc3 {[%clk 0:01:14]} 21... Ne5 {[%clk 0:01:23.2]} 22. Bf4 {[%clk 0:01:14.3]}
22... Bd7 {[%clk 0:01:18.8]} 23. Bxe5 {[%clk 0:01:08]} 23... Qxe5 {[%clk
0:01:02.6]} 24. Qe3 {[%clk 0:01:07.6]} 24... b5 {[%clk 0:00:57]} 25. Kh2 {[%clk
0:00:55.4]} 25... bxa4 {[%clk 0:00:57]} 26. bxa4 {[%clk 0:00:57.3]} 26... Bxa4
{[%clk 0:00:52.6]} 27. Qh6 {[%clk 0:00:43.7]} 27... Qg5 {[%clk 0:00:51.2]} 28.
Qxg5+ {[%clk 0:00:35.8]} 28... fxg5 {[%clk 0:00:53.1]} 29. Nf3 {[%clk
0:00:34.2]} 29... h6 {[%clk 0:00:51.4]} 30. e5 {[%clk 0:00:35.7]} 30... g4
{[%clk 0:00:45.8]} 31. Nh4 {[%clk 0:00:33.5]} 31... dxe5 {[%clk 0:00:46.8]} 32.
Nf5 {[%clk 0:00:34.8]} 32... Bd7 {[%clk 0:00:43.9]} 33. d6 {[%clk 0:00:33.3]}
33... Rf8 {[%clk 0:00:43.2]} 34. Ne7+ {[%clk 0:00:32]} 34... Kg7 {[%clk
0:00:44.4]} 35. f4 {[%clk 0:00:19.7]} 35... exf4 {[%clk 0:00:43.4]} 36. gxf4
{[%clk 0:00:19.4]} 36... Rbxf4 {[%clk 0:00:42.9]} 37. Re1 {[%clk 0:00:18.4]}
37... h5 {[%clk 0:00:39.3]} 38. Nd5 {[%clk 0:00:19.1]} 38... R4f7 {[%clk
0:00:32.6]} 39. Re5 {[%clk 0:00:19.1]} 39... Kg6 {[%clk 0:00:29.7]} 40. Be4+
{[%clk 0:00:18.1]} 40... Kh6 {[%clk 0:00:29.3]} 41. Kg3 {[%clk 0:00:19.4]} 41...
Bf5 {[%clk 0:00:21.6]} 42. Bxf5 {[%clk 0:00:18.2]} 42... Rxf5 {[%clk 0:00:22.9]}
43. Re6+ {[%clk 0:00:19]} 43... Kg7 {[%clk 0:00:24]} 44. Ne7 {[%clk 0:00:20.2]}
44... Rf3+ {[%clk 0:00:23.4]} 45. Kh4 {[%clk 0:00:20.6]} 45... h2 {[%clk
0:00:24.5]} 46. Re1 {[%clk 0:00:13.7]} 46... Rf1 {[%clk 0:00:24.8]} 47. Rxf1
{[%clk 0:00:13.6]} 47... Rxf1 {[%clk 0:00:25.5]} 48. d7 {[%clk 0:00:15.5]} 48...
h1=Q+ {[%clk 0:00:25.8]} 49. Kg5 {[%clk 0:00:17.4]} 49... Rd1 {[%clk 0:00:26.3]}
50. Nf5+ {[%clk 0:00:18.9]} 50... Kf7 {[%clk 0:00:27.1]} 0-1

[Event "*** Titled Tuesday 3|2 Blitz"]
[Site "Chess.com"]
[Date "2017.06.06"]
[Round "1"]
[White "Fy_Rakotomaharo"]
[Black "Grootneus"]
[Result "0-1"]
[WhiteElo "2416"]
[BlackElo "2068"]
[TimeControl "180+2"]
[EndTime "13:59:08 PDT"]
[Termination "Grootneus won on time"]

1. e4 {[%clk 0:03:02]} 1... c5 {[%clk 0:03:00]} 2. Nf3 {[%clk 0:02:58.3]} 2...
a6 {[%clk 0:02:59]} 3. c4 {[%clk 0:02:54]} 3... d6 {[%clk 0:02:36.1]} 4. Nc3
{[%clk 0:02:49.6]} 4... e5 {[%clk 0:02:31.4]} 5. d3 {[%clk 0:02:36.5]} 5... Nc6
{[%clk 0:02:27.2]} 6. Be3 {[%clk 0:02:34.6]} 6... g6 {[%clk 0:02:27]} 7. g3
{[%clk 0:02:32.9]} 7... Bg7 {[%clk 0:02:28]} 8. Bg2 {[%clk 0:02:33.5]} 8... Nge7
{[%clk 0:02:28.1]} 9. O-O {[%clk 0:02:35]} 9... O-O {[%clk 0:02:28.8]} 10. a3
{[%clk 0:02:33.7]} 10... f5 {[%clk 0:02:24.1]} 11. Rb1 {[%clk 0:02:28.9]} 11...
f4 {[%clk 0:02:20.4]} 12. Bd2 {[%clk 0:02:28.1]} 12... Bg4 {[%clk 0:02:15]} 13.
h3 {[%clk 0:02:28.4]} 13... Be6 {[%clk 0:02:15.4]} 14. g4 {[%clk 0:02:20]} 14...
a5 {[%clk 0:02:13.8]} 15. Nd5 {[%clk 0:02:18.4]} 15... Bxd5 {[%clk 0:02:02]} 16.
exd5 {[%clk 0:02:08]} 16... Nd4 {[%clk 0:02:01.1]} 17. Nxd4 {[%clk 0:02:07.6]}
17... cxd4 {[%clk 0:01:55.8]} 18. b4 {[%clk 0:02:00.8]} 18... axb4 {[%clk
0:01:55.2]} 19. axb4 {[%clk 0:02:01.4]} 19... g5 {[%clk 0:01:43.6]} 20. Be4
{[%clk 0:02:01.2]} 20... b6 {[%clk 0:01:14.6]} 21. Ra1 {[%clk 0:01:56.1]} 21...
Qc7 {[%clk 0:01:04.8]} 22. Qb3 {[%clk 0:01:50.3]} 22... Kh8 {[%clk 0:01:03.4]}
23. f3 {[%clk 0:01:43.5]} 23... Ra7 {[%clk 0:00:59.9]} 24. Kg2 {[%clk
0:01:20.9]} 24... Rfa8 {[%clk 0:00:58.8]} 25. Qb2 {[%clk 0:01:21.7]} 25... Ra4
{[%clk 0:00:49.9]} 26. Rxa4 {[%clk 0:01:02]} 26... Rxa4 {[%clk 0:00:50.6]} 27.
Ra1 {[%clk 0:01:02.9]} 27... b5 {[%clk 0:00:14.3]} 28. cxb5 {[%clk 0:00:53.4]}
28... Rxa1 {[%clk 0:00:07.8]} 29. Qxa1 {[%clk 0:00:55.3]} 29... Qc2 {[%clk
0:00:08.5]} 30. Qc1 {[%clk 0:00:54.3]} 30... Qa4 {[%clk 0:00:08.3]} 31. b6
{[%clk 0:00:53.7]} 31... Qa6 {[%clk 0:00:05.4]} 32. Qc7 {[%clk 0:00:52.5]} 32...
Ng8 {[%clk 0:00:06.6]} 33. b7 {[%clk 0:00:50.6]} 33... Qa2 {[%clk 0:00:08.3]}
34. Qc1 {[%clk 0:00:51.3]} 34... Qa7 {[%clk 0:00:09.8]} 35. b5 {[%clk
0:00:07.8]} 35... Qxb7 {[%clk 0:00:10.5]} 0-1

[Event "*** Titled Tuesday 3|2 Blitz"]
[Site "Chess.com"]
[Date "2017.06.06"]
[Round "1"]
[White "Divertissement"]
[Black "tihanaivekovic223"]
[Result "1-0"]
[WhiteElo "2417"]
[BlackElo "1993"]
[TimeControl "180+2"]
[EndTime "13:59:10 PDT"]
[Termination "Divertissement won by resignation"]

1. d4 {[%clk 0:02:58.9]} 1... d5 {[%clk 0:03:00.3]} 2. Nf3 {[%clk 0:02:58.3]}
2... Nf6 {[%clk 0:03:00.6]} 3. c4 {[%clk 0:02:54.7]} 3... e6 {[%clk 0:03:01.6]}
4. g3 {[%clk 0:02:53.7]} 4... Be7 {[%clk 0:03:02.5]} 5. Bg2 {[%clk 0:02:54.1]}
5... O-O {[%clk 0:03:03.9]} 6. O-O {[%clk 0:02:54.9]} 6... dxc4 {[%clk
0:03:05.2]} 7. Qc2 {[%clk 0:02:55.7]} 7... a6 {[%clk 0:03:05.4]} 8. a4 {[%clk
0:02:55.9]} 8... Bd7 {[%clk 0:03:04.8]} 9. Qxc4 {[%clk 0:02:55.8]} 9... Bc6
{[%clk 0:03:02.6]} 10. Nc3 {[%clk 0:02:53.6]} 10... b5 {[%clk 0:03:01.1]} 11.
Qb3 {[%clk 0:02:36]} 11... b4 {[%clk 0:03:01.7]} 12. Nd1 {[%clk 0:02:28]} 12...
a5 {[%clk 0:03:02.4]} 13. Bg5 {[%clk 0:02:19.4]} 13... Bd5 {[%clk 0:03:02.1]}
14. Qc2 {[%clk 0:02:14.8]} 14... Na6 {[%clk 0:02:58.1]} 15. Bxf6 {[%clk
0:02:09.9]} 15... Bxf6 {[%clk 0:02:57.3]} 16. e4 {[%clk 0:02:10.7]} 16... b3
{[%clk 0:02:48.7]} 17. Qe2 {[%clk 0:02:05.6]} 17... Bb7 {[%clk 0:02:42.6]} 18.
e5 {[%clk 0:01:52.8]} 18... Be7 {[%clk 0:02:40.4]} 19. Nc3 {[%clk 0:01:45.4]}
19... Bb4 {[%clk 0:02:37.4]} 20. Qc4 {[%clk 0:01:26]} 20... Bxc3 {[%clk
0:02:15.3]} 21. Qxc3 {[%clk 0:01:23.5]} 21... Bd5 {[%clk 0:02:12.3]} 22. Qxa5
{[%clk 0:01:12.3]} 22... Qe7 {[%clk 0:01:35.5]} 23. Rfc1 {[%clk 0:01:01.9]}
23... c6 {[%clk 0:01:26.1]} 24. Qc3 {[%clk 0:00:57]} 24... Rfc8 {[%clk
0:01:19.4]} 25. Qe3 {[%clk 0:00:50.3]} 25... Nb4 {[%clk 0:01:17.9]} 26. Ne1
{[%clk 0:00:45.3]} 26... Bxg2 {[%clk 0:01:11.4]} 27. Kxg2 {[%clk 0:00:47.2]}
27... Qb7 {[%clk 0:00:55.6]} 28. Qxb3 {[%clk 0:00:42.1]} 28... c5+ {[%clk
0:00:54.1]} 29. Qf3 {[%clk 0:00:42.5]} 29... Qa7 {[%clk 0:00:38.1]} 30. dxc5
{[%clk 0:00:34.2]} 30... Nd5 {[%clk 0:00:38.9]} 31. Nd3 {[%clk 0:00:31.8]} 31...
Qa6 {[%clk 0:00:39.7]} 32. b4 {[%clk 0:00:31.5]} 32... Rab8 {[%clk 0:00:32.6]}
33. b5 {[%clk 0:00:31.8]} 33... Qa5 {[%clk 0:00:33.9]} 34. c6 {[%clk 0:00:31.9]}
34... Nc3 {[%clk 0:00:25.5]} 35. Nc5 {[%clk 0:00:29.7]} 35... Nd5 {[%clk
0:00:17.2]} 36. Rd1 {[%clk 0:00:25.5]} 36... h6 {[%clk 0:00:18]} 37. Rxd5 {[%clk
0:00:25.7]} 37... exd5 {[%clk 0:00:19]} 38. Qxd5 {[%clk 0:00:27.6]} 38... Rd8
{[%clk 0:00:17.9]} 39. Nd7 {[%clk 0:00:27.5]} 39... Qc3 {[%clk 0:00:17.3]} 40.
Rd1 {[%clk 0:00:26.7]} 40... Rbc8 {[%clk 0:00:15.6]} 41. e6 {[%clk 0:00:27]}
41... fxe6 {[%clk 0:00:15.6]} 42. Qxe6+ {[%clk 0:00:27.5]} 42... Kh7 {[%clk
0:00:17.5]} 43. Qe7 {[%clk 0:00:25.3]} 43... Qb3 {[%clk 0:00:16.8]} 44. Qe4+
{[%clk 0:00:24.4]} 44... Kh8 {[%clk 0:00:16.6]} 45. Rd3 {[%clk 0:00:24.4]} 45...
Qf7 {[%clk 0:00:16.6]} 46. Ne5 {[%clk 0:00:24.1]} 46... Re8 {[%clk 0:00:16.8]}
47. Nxf7+ {[%clk 0:00:24]} 47... Kg8 {[%clk 0:00:17.9]} 48. Qd5 {[%clk
0:00:24.4]} 1-0

[Event "*** Titled Tuesday 3|2 Blitz"]
[Site "Chess.com"]
[Date "2017.06.06"]
[Round "1"]
[White "RitvarsReimanis"]
[Black "Wolverine_master"]
[Result "1-0"]
[WhiteElo "2415"]
[BlackElo "1979"]
[TimeControl "180+2"]
[EndTime "13:59:11 PDT"]
[Termination "RitvarsReimanis won by checkmate"]

1. d4 {[%clk 0:02:37.1]} 1... Nf6 {[%clk 0:03:00.4]} 2. c4 {[%clk 0:02:38.2]}
2... c5 {[%clk 0:03:01.2]} 3. d5 {[%clk 0:02:39]} 3... b5 {[%clk 0:03:02.4]} 4.
cxb5 {[%clk 0:02:39.6]} 4... a6 {[%clk 0:03:03.8]} 5. bxa6 {[%clk 0:02:41.5]}
5... Bxa6 {[%clk 0:03:05.2]} 6. Nc3 {[%clk 0:02:42.8]} 6... d6 {[%clk
0:03:06.7]} 7. Nf3 {[%clk 0:02:44]} 7... g6 {[%clk 0:03:07.4]} 8. g3 {[%clk
0:02:45.2]} 8... Bg7 {[%clk 0:03:08.8]} 9. Rb1 {[%clk 0:02:46.3]} 9... O-O
{[%clk 0:02:59.8]} 10. b3 {[%clk 0:02:47.1]} 10... Qa5 {[%clk 0:03:00]} 11. Bd2
{[%clk 0:02:48.4]} 11... Ng4 {[%clk 0:02:59]} 12. Qc2 {[%clk 0:02:46.9]} 12...
Nd7 {[%clk 0:02:58]} 13. Bg2 {[%clk 0:02:43]} 13... Rfb8 {[%clk 0:02:55.2]} 14.
O-O {[%clk 0:02:43.4]} 14... c4 {[%clk 0:02:34.4]} 15. b4 {[%clk 0:02:34.5]}
15... Qb6 {[%clk 0:02:14.6]} 16. a4 {[%clk 0:02:24.3]} 16... Bb7 {[%clk
0:02:12.8]} 17. a5 {[%clk 0:02:10.6]} 17... Qc7 {[%clk 0:02:11.6]} 18. e4 {[%clk
0:02:04.5]} 18... Nge5 {[%clk 0:02:07.8]} 19. Nxe5 {[%clk 0:01:58.4]} 19... Nxe5
{[%clk 0:02:09.7]} 20. Be3 {[%clk 0:01:40.9]} 20... Nd3 {[%clk 0:02:03.6]} 21.
Bb6 {[%clk 0:01:36.8]} 21... Qd7 {[%clk 0:02:03.3]} 22. Ne2 {[%clk 0:01:31]}
22... Ba6 {[%clk 0:02:03]} 23. Rfd1 {[%clk 0:01:30]} 23... f5 {[%clk 0:01:55.1]}
24. exf5 {[%clk 0:01:23.9]} 24... Qxf5 {[%clk 0:01:55.7]} 25. Nd4 {[%clk
0:01:25.1]} 25... Bxd4 {[%clk 0:01:53.5]} 26. Bxd4 {[%clk 0:01:27]} 26... Rxb4
{[%clk 0:01:47.3]} 27. Rxb4 {[%clk 0:01:11.2]} 27... Nxb4 {[%clk 0:01:48]} 28.
Qxf5 {[%clk 0:01:08.3]} 28... gxf5 {[%clk 0:01:48.7]} 29. Rb1 {[%clk 0:00:59]}
29... Rb8 {[%clk 0:01:23.5]} 30. Bh3 {[%clk 0:00:53.9]} 30... f4 {[%clk
0:00:43]} 31. gxf4 {[%clk 0:00:48.4]} 31... Nc6 {[%clk 0:00:25.7]} 32. Rxb8+
{[%clk 0:00:46.4]} 32... Nxb8 {[%clk 0:00:27.6]} 33. Ba7 {[%clk 0:00:19.9]}
33... c3 {[%clk 0:00:19]} 34. Bf5 {[%clk 0:00:21]} 34... Nd7 {[%clk 0:00:15.9]}
35. Bxd7 {[%clk 0:00:21.5]} 35... c2 {[%clk 0:00:15]} 36. Be3 {[%clk 0:00:22.2]}
36... Kg7 {[%clk 0:00:14.9]} 37. Bd4+ {[%clk 0:00:22.2]} 37... Kg6 {[%clk
0:00:15.4]} 38. Bb2 {[%clk 0:00:23.5]} 38... Bc4 {[%clk 0:00:12]} 39. Be6 {[%clk
0:00:22.3]} 39... Kh5 {[%clk 0:00:08.5]} 40. Kg2 {[%clk 0:00:23]} 40... Kh4
{[%clk 0:00:09.8]} 41. Kf3 {[%clk 0:00:23.8]} 41... h5 {[%clk 0:00:10.7]} 42.
Ke3 {[%clk 0:00:19.5]} 42... Bd3 {[%clk 0:00:08.8]} 43. f5 {[%clk 0:00:16.3]}
43... Bc4 {[%clk 0:00:05]} 44. f6 {[%clk 0:00:17.1]} 44... exf6 {[%clk
0:00:05.4]} 45. Bxf6# {[%clk 0:00:17.5]} 1-0